bitfinex/quotes_SOLUSD_20240915
["timestamp","ask_amount","ask_price","bid_price","bid_amount"]
[1726404604834,6.4035,135.98,135.91,30.0]
[1726404608043,8.01358836,135.98,135.91,30.0]
[1726404608343,15.36758836,135.98,135.91,30.0]
[1726404608543,6.53,135.97,135.91,30.0]
[1726404608844,1.61008836,135.96,135.91,30.2535]
[1726404611545,6.53,135.97,135.91,30.2535]
[1726404611841,6.53,135.97,135.92,25.49857511]
[1726404612171,6.53,135.97,135.93,1.47099008]
[1726404612532,6.53,135.97,135.92,24.027864]
[1726404613347,6.53,135.97,135.93,30.0]
[1726404616748,6.53,135.97,135.94,0.12549]
[1726404616947,16.2965,135.99,135.94,30.12549]
[1726404625733,16.2965,135.99,135.94,0.12549]
[1726404628750,16.2965,135.99,135.94,30.12549]
[1726404629751,16.2965,135.99,135.93,0.25098]
[1726404630454,16.2965,135.99,135.93,0.12549]
[1726404630455,17.90658836,135.99,135.93,0.12549]
[1726404630653,1.61008836,135.98,135.93,0.12549]
[1726404631058,16.2965,135.99,135.93,0.12549]
[1726404631636,1.61008836,135.98,135.93,0.12549]
[1726404632553,1.61008836,135.98,135.93,30.12549]
[1726404633241,16.2965,135.99,135.93,30.12549]
[1726404633444,16.2965,135.99,135.94,23.776884]
[1726404633745,16.2965,135.99,135.95,30.0]
[1726404639161,16.2965,135.99,135.94,23.776884]
[1726404642842,16.2965,135.99,135.95,30.0]
[1726404643460,16.2965,135.99,135.94,23.776884]
[1726404645364,16.2965,135.99,135.95,5.62028859]
[1726404645550,16.2965,135.99,135.96,5.62028859]
[1726404645753,16.2965,135.99,135.97,5.62028859]
[1726404645951,16.2965,135.99,135.94,23.776884]
[1726404646259,16.2965,135.99,135.95,5.62035414]
[1726404646447,16.2965,135.99,135.96,5.62035414]
[1726404646633,16.2965,135.99,135.97,5.62035414]
[1726404646840,16.2965,135.99,135.94,23.776884]
[1726404647040,16.2965,135.99,135.95,5.62038793]
[1726404647340,16.2965,135.99,135.96,5.62038793]
[1726404647542,16.2965,135.99,135.97,5.62038793]
[1726404647853,16.2965,135.99,135.94,23.776884]
[1726404648050,16.2965,135.99,135.95,5.62044113]
[1726404648252,16.2965,135.99,135.94,23.776884]
[1726404648253,16.2965,135.99,135.96,5.62044113]
[1726404648562,16.2965,135.99,135.97,5.62093534]
[1726404648867,16.2965,135.99,135.93,0.12549]
[1726404649068,16.2965,135.99,135.94,5.62102219]
[1726404649274,16.2965,135.99,135.95,5.62101751]
[1726404649574,16.2965,135.99,135.96,5.62101751]
[1726404649861,16.2965,135.99,135.93,30.12549]
[1726404650164,16.2965,135.99,135.94,5.62121966]
[1726404650374,16.2965,135.99,135.95,5.62121966]
[1726404650543,16.2965,135.99,135.96,5.62121966]
[1726404650746,16.2965,135.99,135.97,5.62121966]
[1726404650968,16.2965,135.99,135.93,30.12549]
[1726404651460,16.2965,135.99,135.94,5.62213167]
[1726404651665,16.2965,135.99,135.95,5.62213167]
[1726404651960,16.2965,135.99,135.96,5.62213167]
[1726404652175,16.2965,135.99,135.97,5.62213167]
[1726404652469,16.2965,135.99,135.93,30.12549]
[1726404652766,16.2965,135.99,135.94,5.62240475]
[1726404652947,16.2965,135.99,135.95,5.62240475]
[1726404653147,16.2965,135.99,135.96,5.62240475]
[1726404653339,16.2965,135.99,135.97,5.62240475]
[1726404653545,16.2965,135.99,135.93,30.12549]
[1726404653854,16.2965,135.99,135.94,5.62248519]
[1726404654053,16.2965,135.99,135.95,5.62248519]
[1726404654253,16.2965,135.99,135.96,5.62248519]
[1726404654565,1.61008836,135.98,135.93,30.12549]
[1726404654753,1.61008836,135.98,135.97,5.62188129]
[1726404654954,1.61008836,135.98,135.93,30.12549]
[1726404655266,1.61008836,135.98,135.94,5.62328799]
[1726404655468,1.61008836,135.98,135.95,5.62328799]
[1726404655765,1.61008836,135.98,135.96,5.62328799]
[1726404656062,1.61008836,135.98,135.93,30.12549]
[1726404656269,1.61008836,135.98,135.94,5.62311097]
[1726404656454,1.61008836,135.98,135.95,5.62311097]
[1726404656655,16.2965,135.99,135.96,5.62311097]
[1726404656845,16.2965,135.99,135.93,0.12549]
[1726404657045,16.2965,135.99,135.92,0.25098]
[1726404657280,16.2965,135.99,135.93,4.05133025]
[1726404657473,16.2965,135.99,135.94,10.53346062]
[1726404657643,16.2965,135.99,135.95,4.05133025]
[1726404657847,16.2965,135.99,135.93,6.48217449]
[1726404658150,16.2965,135.99,135.94,10.53354429]
[1726404658352,16.2965,135.99,135.94,10.53346185]
[1726404658548,16.2965,135.99,135.95,4.05133148]
[1726404658751,16.2965,135.99,135.93,6.48211937]
[1726404658950,16.2965,135.99,135.94,10.53332962]
[1726404659163,16.2965,135.99,135.95,4.05121025]
[1726404659362,16.2965,135.99,135.93,6.48205806]
[1726404659685,1.61008836,135.98,135.94,10.53336359]
[1726404659869,6.4364,135.97,135.95,4.05130553]
[1726404660066,6.4364,135.97,135.92,6.48291322]
[1726404660249,6.4364,135.97,135.93,10.53528223]
[1726404660573,6.4364,135.97,135.94,4.05236901]
[1726404660782,6.4364,135.97,135.92,6.48308624]
[1726404661002,6.4364,135.97,135.91,0.2535]
[1726404661180,6.4364,135.97,135.93,6.48323812]
[1726404661588,6.4364,135.97,135.93,10.53526194]
[1726404661778,6.4364,135.97,135.93,21.07051678]
[1726404662181,6.4364,135.97,135.94,4.05202109]
[1726404662402,6.4364,135.97,135.93,10.53526194]
[1726404662574,6.4364,135.97,135.94,4.05188669]
[1726404662776,6.4364,135.97,135.93,10.53526194]
[1726404663075,6.4364,135.97,135.94,4.05188759]
[1726404663276,6.4364,135.97,135.93,10.53526194]
[1726404664671,13.791,135.97,135.93,10.53526194]
[1726404664900,15.40108836,135.97,135.93,10.53526194]
[1726404665787,27.3551,135.96,135.93,10.53526194]
[1726404665983,6.0611,135.94,135.93,10.53526194]
[1726404666875,13.4172,135.94,135.93,10.53526194]
[1726404667299,33.54269,135.94,135.93,10.53526194]
[1726404667685,57.570554,135.94,135.93,3.86866194]
[1726404668209,27.3572,135.92,135.91,0.2535]
[1726404668499,29.09277836,135.92,135.91,0.2535]
[1726404671706,29.21826836,135.92,135.91,0.2535]
[1726404673294,27.60818,135.92,135.91,0.2535]
[1726404673998,20.0,135.91,135.82,12.5014902]
[1726404674319,20.0,135.91,135.83,30.12549]
[1726404688112,20.0,135.92,135.85,0.12549]
[1726404688318,7.0836616,135.93,135.87,0.12549]
[1726404688492,7.0836616,135.93,135.87,0.37647]
[1726404688812,0.2535616,135.93,135.87,0.37647]
[1726404689308,0.2535616,135.93,135.87,30.37647]
[1726404695824,0.2535616,135.93,135.87,30.12549]
[1726404700225,0.2535616,135.93,135.87,0.12549]
[1726404701621,0.2535616,135.93,135.86,38.847984]
[1726404701803,0.2535616,135.93,135.86,15.0711]
[1726404702612,27.6102616,135.93,135.86,15.0711]
[1726404702811,1.61008836,135.92,135.86,15.0711]
[1726404705323,27.6102616,135.93,135.86,15.0711]
[1726404705705,29.22034996,135.93,135.86,15.0711]
[1726404709811,29.22034996,135.93,135.86,18.98332478]
[1726404710009,29.22034996,135.93,135.86,15.0711]
[1726404710329,29.22034996,135.93,135.86,18.98332478]
[1726404710535,29.22034996,135.93,135.86,15.0711]
[1726404711321,8.96738836,135.92,135.86,15.0711]
[1726404711513,9.09287836,135.92,135.86,15.0711]
[1726404712327,9.09287836,135.92,135.87,3.91211903]
[1726404712539,9.09287836,135.92,135.86,15.0711]
[1726404713002,7.48279,135.92,135.86,15.0711]
[1726404713824,27.6102616,135.93,135.86,15.0711]
[1726404714133,27.6102616,135.93,135.87,3.91202627]
[1726404714445,27.6102616,135.93,135.86,15.0711]
[1726404714644,27.6102616,135.93,135.87,3.91203897]
[1726404714811,27.6102616,135.93,135.86,15.0711]
[1726404715010,27.6102616,135.93,135.87,3.91207767]
[1726404715225,27.6102616,135.93,135.86,15.0711]
[1726404715425,27.6102616,135.93,135.87,3.91198726]
[1726404716024,27.6102616,135.93,135.86,15.0711]
[1726404716224,27.6102616,135.93,135.87,3.91202684]
[1726404716434,27.6102616,135.93,135.86,15.0711]
[1726404716731,20.2535616,135.93,135.87,3.91196579]
[1726404716918,20.2535616,135.93,135.88,5.63114258]
[1726404717252,20.2535616,135.93,135.87,3.91201558]
[1726404717429,20.2535616,135.93,135.84,6.25941097]
[1726404717430,1.73557836,135.92,135.84,6.25941097]
[1726404717643,20.0,135.91,135.85,5.6334068]
[1726404717932,1.61008836,135.9,135.86,5.63343205]
[1726404718131,1.61008836,135.89,135.83,27.80141097]
[1726404718931,1.61008836,135.89,135.84,6.25941097]
[1726404719233,20.0,135.91,135.84,6.25941097]
[1726404719234,1.61008836,135.9,135.84,6.25941097]
[1726404720215,1.61008836,135.89,135.84,6.25941097]
[1726404720943,1.61008836,135.89,135.83,21.542]
[1726404721435,1.61008836,135.9,135.84,6.26100868]
[1726404722536,1.61008836,135.89,135.83,27.80300868]
[1726404722733,1.61008836,135.89,135.84,6.26100868]
[1726404723131,1.61008836,135.89,135.83,27.80300868]
[1726404723626,1.61008836,135.9,135.83,27.80300868]
[1726404723817,1.61008836,135.9,135.84,6.26100868]
[1726404724017,1.61008836,135.89,135.84,6.26100868]
[1726404724218,20.0,135.91,135.84,6.26100868]
[1726404726837,20.0,135.91,135.83,21.542]
[1726404726838,1.61008836,135.9,135.83,21.542]
[1726404727351,1.61008836,135.9,135.84,6.26332921]
[1726404727719,1.61008836,135.89,135.84,6.26332921]
[1726404728640,1.61008836,135.9,135.84,6.26332921]
[1726404729637,1.61008836,135.9,135.83,21.63052921]
[1726404731031,1.61008836,135.9,135.84,6.26332921]
[1726404731845,20.0,135.91,135.84,6.26332921]
[1726404734251,20.0,135.91,135.83,15.3672]
[1726404734423,20.0,135.91,135.84,6.26451183]
[1726404735040,1.61008836,135.9,135.84,6.26451183]
[1726404735959,20.0,135.91,135.84,6.26451183]
[1726404736135,1.61008836,135.9,135.84,6.26451183]
[1726404736339,20.0,135.91,135.84,6.26451183]
[1726404737339,1.61008836,135.9,135.84,6.26451183]
[1726404738233,1.61008836,135.9,135.84,6.26390839]
[1726404739339,1.61008836,135.9,135.85,6.26390839]
[1726404739539,1.61008836,135.9,135.84,6.26390839]
[1726404739742,1.61008836,135.9,135.85,6.26390839]
[1726404739953,1.61008836,135.89,135.84,6.26390839]
[1726404740135,1.61008836,135.89,135.85,6.26390839]
[1726404740452,1.61008836,135.89,135.84,6.26390839]
[1726404740655,1.61008836,135.89,135.85,6.26390839]
[1726404740947,20.0,135.91,135.84,6.26390839]
[1726404740948,1.61008836,135.9,135.84,6.26390839]
[1726404741146,1.61008836,135.9,135.85,6.26390839]
[1726404741355,1.61008836,135.9,135.84,6.26390839]
[1726404741534,1.61008836,135.9,135.85,6.26390839]
[1726404741734,1.61008836,135.9,135.84,6.26390839]
[1726404741934,1.61008836,135.9,135.85,6.26390839]
[1726404742135,1.61008836,135.9,135.84,6.26390839]
[1726404742341,1.61008836,135.9,135.85,6.26390839]
[1726404742541,1.61008836,135.9,135.84,6.26390839]
[1726404742740,1.61008836,135.9,135.85,6.26425981]
[1726404742936,1.61008836,135.9,135.84,6.26425981]
[1726404743241,1.61008836,135.9,135.85,6.26425981]
[1726404743443,1.61008836,135.9,135.84,6.26425981]
[1726404743645,1.61008836,135.9,135.85,6.26425981]
[1726404743847,1.61008836,135.9,135.84,6.26425981]
[1726404744044,1.61008836,135.9,135.85,6.26425981]
[1726404744244,1.61008836,135.9,135.84,6.26425981]
[1726404744446,1.61008836,135.9,135.85,6.26425981]
[1726404744647,1.61008836,135.9,135.84,6.26425981]
[1726404745035,1.61008836,135.9,135.84,6.26479053]
[1726404745467,1.61008836,135.9,135.83,15.3672]
[1726404750761,8.17928836,135.9,135.83,15.3672]
[1726404751059,8.17928836,135.9,135.81,24.027864]
[1726404751262,8.17928836,135.9,135.82,0.12549]
[1726404753244,15.9795,135.89,135.81,24.027864]
[1726404753447,1.61008836,135.88,135.81,24.027864]
[1726404754366,15.9795,135.89,135.81,24.027864]
[1726404758990,17.58958836,135.89,135.81,24.027864]
[1726404762455,15.9795,135.89,135.81,24.027864]
[1726404777583,15.9795,135.89,135.82,3.91781263]
[1726404777787,15.9795,135.89,135.83,3.91781263]
[1726404777981,15.9795,135.89,135.81,24.027864]
[1726404777982,15.9795,135.89,135.84,3.91781263]
[1726404778186,15.9795,135.89,135.85,9.55714383]
[1726404778387,15.9795,135.89,135.86,9.55714383]
[1726404778594,15.9795,135.89,135.87,9.55714383]
[1726404778788,15.9795,135.89,135.88,5.63926223]
[1726404781206,15.9795,135.89,135.81,24.027864]
[1726404781414,15.9795,135.89,135.88,5.63983899]
[1726404781714,15.9795,135.89,135.81,24.027864]
[1726404781873,15.9795,135.89,135.82,3.91815471]
[1726404782610,15.9795,135.89,135.81,24.027864]
[1726404797412,6.5692,135.9,135.83,24.027864]
[1726404797713,6.5692,135.9,135.85,24.027864]
[1726404797887,0.2535616,135.93,135.86,0.12549]
[1726404797888,6.7090616,135.93,135.86,0.12549]
[1726404799007,6.7090616,135.93,135.87,24.027864]
[1726404800094,6.7090616,135.93,135.88,30.0]
[1726404805512,6.7090616,135.93,135.89,30.0]
[1726404809315,0.2535616,135.93,135.89,30.0]
[1726404813423,0.2535616,135.93,135.9,23.902374]
[1726404813625,0.2535616,135.93,135.91,1.72226006]
[1726404814009,0.2535616,135.93,135.91,0.25098]
[1726404814732,0.2535616,135.93,135.91,30.25098]
[1726404816002,0.2535616,135.93,135.92,30.0]
[1726404821229,0.2535616,135.93,135.92,29.797308]
[1726404838426,0.2535616,135.93,135.92,53.950662]
[1726404841559,0.2535616,135.93,135.92,59.56617697]
[1726404842554,0.2535616,135.93,135.92,53.950662]
[1726404842849,0.2535616,135.93,135.92,59.56664629]
[1726404843045,0.2535616,135.93,135.92,35.53878229]
[1726404843229,0.2535616,135.93,135.92,39.44031491]
[1726404843953,0.2535616,135.93,135.92,39.31482491]
[1726404844939,0.2535616,135.93,135.92,39.31481413]
[1726404845141,0.2535616,135.93,135.92,39.31458477]
[1726404845629,0.2535616,135.93,135.92,35.41328151]
[1726404846235,0.2535616,135.93,135.92,39.31485372]
[1726404847361,0.2535616,135.93,135.92,35.41328151]
[1726404847846,0.2535616,135.93,135.92,39.3147589]
[1726404848447,0.2535616,135.93,135.92,33.69878539]
[1726404848658,0.2535616,135.93,135.92,35.41346318]
[1726404848845,0.2535616,135.93,135.92,39.31489289]
[1726404852057,0.2535616,135.93,135.92,35.41486137]
[1726404852473,0.2535616,135.93,135.92,39.31727305]
[1726404854160,0.2535616,135.93,135.92,35.41502092]
[1726404854344,0.2535616,135.93,135.92,39.31754875]
[1726404855658,0.2535616,135.93,135.92,35.41498495]
[1726404856039,0.2535616,135.93,135.92,39.31749304]
[1726404859255,0.2535616,135.93,135.92,33.69981609]
[1726404859443,0.2535616,135.93,135.92,35.41533587]
[1726404859645,0.2535616,135.93,135.92,39.31808516]
[1726404863067,0.2535616,135.93,135.92,39.31910454]
[1726404866166,0.2535616,135.93,135.92,29.797308]
[1726404866356,0.2535616,135.93,135.92,35.41614664]
[1726404866560,0.2535616,135.93,135.92,39.319465]
[1726404866885,0.2535616,135.93,135.92,39.31932795]
[1726404873970,0.2535616,135.93,135.92,43.22261972]
[1726404874174,0.2535616,135.93,135.92,39.31930136]
[1726404874673,0.2535616,135.93,135.92,43.22253219]
[1726404874889,0.2535616,135.93,135.92,39.31924042]
[1726404877356,0.2535616,135.93,135.92,33.70053883]
[1726404877668,0.2535616,135.93,135.92,35.4152328]
[1726404877865,0.2535616,135.93,135.92,39.31790385]
[1726404881069,0.2535616,135.93,135.92,39.31851195]
[1726404884980,0.2535616,135.93,135.92,39.31829062]
[1726404887778,0.2535616,135.93,135.92,39.31887548]
[1726404887969,0.2535616,135.93,135.92,39.3189072]
[1726404890084,0.2535616,135.93,135.92,39.31812148]
[1726404891383,0.2535616,135.93,135.92,39.31912815]
[1726404891689,0.2535616,135.93,135.92,63.34715097]
[1726404891988,0.2535616,135.93,135.92,63.47264097]
[1726404892279,0.2535616,135.93,135.92,79.75514097]
[1726404892685,0.2535616,135.93,135.92,85.82794097]
[1726404892987,6.16e-05,135.93,135.92,85.82794097]
[1726404893990,0.2535616,135.97,135.94,24.027864]
[1726404894173,0.2535616,135.97,135.96,24.027864]
[1726404894369,0.2535616,135.97,135.96,33.67533297]
[1726404894683,0.2535616,135.97,135.96,29.77208461]
[1726404894895,0.2535616,135.97,135.96,59.77208461]
[1726404895267,0.2535616,135.97,135.96,63.67145968]
[1726404895572,0.2535616,135.97,135.96,63.66415368]
[1726404895972,0.2535616,136.01,135.97,29.7464384]
[1726404896167,0.2535616,136.01,135.98,3.89854559]
[1726404896365,0.2535616,136.01,135.99,5.61107439]
[1726404896607,0.2535616,136.01,135.97,29.7464384]
[1726404896891,0.2535616,136.01,135.98,5.61085404]
[1726404897083,0.2535616,136.01,135.99,30.0]
[1726404903088,7.3529,136.0,135.99,30.0]
[1726404904939,7.3529,136.0,135.93,30.0]
[1726404913506,7.3536,135.99,135.93,30.0]
[1726404913705,7.3541,135.98,135.93,30.0]
[1726404919700,7.3536,135.99,135.93,30.0]
[1726404925006,1.61008836,135.98,135.93,30.0]
[1726404925502,20.0,135.99,135.93,30.0]
[1726404925709,21.61008836,135.99,135.93,30.0]
[1726404925906,7.3541,135.98,135.93,30.0]
[1726404926107,8.96418836,135.98,135.93,30.0]
[1726404929619,7.3541,135.98,135.93,30.0]
[1726404931225,8.96418836,135.98,135.93,30.0]
[1726404933321,27.3536,135.99,135.93,30.0]
[1726404949337,27.3536,135.99,135.94,5.61845463]
[1726404949539,27.3536,135.99,135.94,30.0]
[1726404952239,20.0,135.99,135.94,30.0]
[1726404953017,20.0,135.99,135.95,5.61758537]
[1726404953220,20.0,135.99,135.94,30.0]
[1726404953416,20.0,136.0,135.95,5.61758537]
[1726404953640,20.2535616,136.01,135.96,17.21236962]
[1726404953824,0.2535616,136.01,135.96,15.7415]
[1726404954715,0.2535616,136.01,135.97,5.61593438]
[1726404954921,20.2535616,136.01,135.96,15.7415]
[1726404955124,20.2535616,136.01,135.97,5.61630093]
[1726404955323,20.2535616,136.01,135.96,15.7415]
[1726404955640,20.2535616,136.01,135.97,30.0]
[1726404958947,20.2535616,136.01,135.96,15.7415]
[1726404961640,7.6060616,136.01,135.97,30.0]
[1726404961833,1.61008836,136.0,135.97,30.0]
[1726404963055,7.6060616,136.01,135.97,30.0]
[1726404969427,7.6060616,136.01,135.96,15.7415]
[1726404972472,7.6060616,136.01,135.97,30.0]
[1726404972750,1.61008836,136.0,135.97,30.0]
[1726404973627,1.61008836,136.0,135.96,15.7415]
[1726404973853,1.61008836,135.99,135.96,15.7415]
[1726404974152,1.61008836,135.98,135.97,30.0]
[1726404974325,7.3529,136.0,135.97,30.0]
[1726404974531,1.61008836,135.99,135.97,30.0]
[1726404976269,8.96358836,135.99,135.97,30.0]
[1726404976552,1.61008836,135.98,135.92,15.2482]
[1726404976752,20.2535616,136.01,135.94,30.0]
[1726404977052,7.354,135.98,135.94,30.0]
[1726404978027,7.354,135.98,135.93,30.0]
[1726404981747,8.96408836,135.98,135.93,30.0]
[1726404981932,7.354,135.98,135.93,30.0]
[1726404990842,7.3547,135.97,135.93,30.0]
[1726404991460,7.3541,135.98,135.93,30.0]
[1726404991667,27.3536,135.99,135.93,30.0]
[1726404992047,20.0,136.0,135.93,30.0]
[1726404992249,20.0,135.99,135.93,30.0]
[1726404994985,27.6059616,136.01,135.93,30.0]
[1726404998065,7.3529,136.0,135.93,30.0]
[1726404998270,20.0,135.99,135.93,30.0]
[1726405001939,20.0,135.99,135.93,36.6081]
[1726405002146,7.3529,136.0,135.93,36.6081]
[1726405004747,20.2535616,136.01,135.94,0.12549]
[1726405004945,20.2535616,136.01,135.95,30.0]
[1726405005164,20.2535616,136.01,135.96,16.1438]
[1726405005360,20.2535616,136.01,135.97,1.47058377]
[1726405005361,0.2535616,136.01,135.97,1.47058377]
[1726405005673,0.2535616,136.01,135.98,1.470496]
[1726405005858,0.2535616,136.01,135.98,31.470496]
[1726405006472,0.2535616,136.01,135.98,30.0]
[1726405021674,0.2535616,136.01,136.0,16.15379]
[1726405021982,0.2535616,136.01,136.0,46.15379]
[1726405024591,0.2535616,136.01,136.0,46.0283]
[1726405028079,0.2535616,136.01,136.0,46.15379]
[1726405031669,0.2535616,136.01,136.0,46.0283]
[1726405049488,0.2535616,136.01,136.0,46.15379]
[1726405052093,0.2535616,136.01,136.0,51.7609909]
[1726405055184,0.2535616,136.01,136.0,46.15379]
[1726405055371,0.2535616,136.01,136.0,51.76053175]
[1726405058307,0.2535616,136.01,136.0,46.15379]
[1726405058598,0.2535616,136.01,136.0,51.76062126]
[1726405059705,0.2535616,136.01,136.0,51.88611126]
[1726405059902,0.2535616,136.01,136.0,52.01160126]
[1726405061412,0.2535616,136.01,136.0,51.88611126]
[1726405061706,0.2535616,136.01,136.0,46.27928]
[1726405061906,0.2535616,136.01,136.0,51.88722586]
[1726405063088,0.2535616,136.01,136.0,51.76173586]
[1726405065398,0.2535616,136.01,136.0,51.76187852]
[1726405065603,0.2535616,136.01,136.0,55.85831361]
[1726405065806,0.2535616,136.01,136.0,50.25022509]
[1726405066008,0.2535616,136.01,136.0,55.85836164]
[1726405066309,0.2535616,136.01,136.0,51.76192655]
[1726405068482,0.2535616,136.01,136.0,51.88741655]
[1726405068688,0.2535616,136.01,136.0,52.01290655]
[1726405069088,0.2535616,136.01,136.0,46.40477]
[1726405069296,0.2535616,136.01,136.0,52.01273894]
[1726405072020,0.2535616,136.01,136.0,61.48578443]
[1726405072697,0.2535616,136.01,136.0,46.40477]
[1726405072901,0.2535616,136.01,136.0,61.79816371]
[1726405074940,0.2535616,136.01,136.0,46.40477]
[1726405075112,0.2535616,136.01,136.0,61.79701977]
[1726405075506,0.2535616,136.01,136.0,85.57390377]
[1726405080538,0.2535616,136.01,136.0,70.181654]
[1726405080726,0.2535616,136.01,136.0,85.5740211]
[1726405083044,0.2535616,136.01,136.0,70.181654]
[1726405083244,0.2535616,136.01,136.0,85.57099223]
[1726405086647,0.2535616,136.01,136.0,76.10112631]
[1726405086931,0.2535616,136.01,136.0,85.57228201]
[1726405093642,0.2535616,136.01,136.0,85.57114636]
[1726405097242,0.2535616,136.01,136.0,70.181654]
[1726405097555,0.2535616,136.01,136.0,85.57035502]
[1726405103634,0.2535616,136.01,136.0,70.181654]
[1726405103833,0.2535616,136.01,136.0,85.57102029]
[1726405106165,0.2535616,136.01,136.0,69.54272029]
[1726405108542,0.2535616,136.01,136.0,45.64034629]
[1726405109845,0.2535616,136.01,136.0,69.54272029]
[1726405113768,0.2535616,136.01,136.0,69.54420933]
[1726405115338,6.16e-05,136.01,136.0,69.54420933]
[1726405116663,6.16e-05,136.01,136.0,84.97680933]
[1726405117162,6.16e-05,136.01,136.0,69.585954]
[1726405117346,6.16e-05,136.01,136.0,84.97012134]
[1726405118281,0.2535616,136.09,136.01,39.460464]
[1726405118481,0.2535616,136.09,136.04,0.12549]
[1726405118771,0.2535616,136.09,136.06,24.027864]
[1726405118944,0.2535616,136.09,136.08,24.027864]
[1726405119145,0.2535616,136.09,136.08,29.94485144]
[1726405119375,0.2535616,136.09,136.08,30.07034144]
[1726405119671,0.2535616,136.09,136.08,60.07034144]
[1726405120440,0.2535616,136.09,136.08,60.05908457]
[1726405121137,0.2535616,136.09,136.08,73.11776179]
[1726405123946,0.2535616,136.09,136.08,71.65019715]
[1726405126874,0.2535616,136.09,136.08,73.11754609]
[1726405127165,0.2535616,136.09,136.08,73.11562681]
[1726405127383,0.2535616,136.09,136.08,82.28901748]
[1726405127546,0.2535616,136.09,136.08,82.2870138]
[1726405128755,0.2535616,136.09,136.08,80.81966486]
[1726405129158,0.2535616,136.09,136.08,80.56868486]
[1726405129357,0.2535616,136.09,136.08,74.54138725]
[1726405130868,0.2535616,136.09,136.08,74.91785725]
[1726405131880,0.2535616,136.09,136.08,76.38668249]
[1726405132082,0.2535616,136.09,136.08,74.91785725]
[1726405132369,0.2535616,136.09,136.08,76.38662881]
[1726405132774,0.2535616,136.09,136.08,74.91785725]
[1726405133279,0.2535616,136.09,136.08,98.53192288]
[1726405133651,0.2535616,136.09,136.08,92.63004484]
[1726405134944,0.2535616,136.13,136.08,92.63004484]
[1726405134945,0.2535616,136.13,136.09,21.01548325]
[1726405135165,0.2535616,136.13,136.11,0.25098]
[1726405135377,0.2535616,136.13,136.12,0.12549]
[1726405136568,0.2535616,136.13,136.12,24.153354]
[1726405136764,0.2535616,136.13,136.11,30.0]
[1726405138281,6.3867616,136.13,136.11,30.0]
[1726405146287,0.2535616,136.13,136.11,30.0]
[1726405155204,7.5994616,136.13,136.11,30.0]
[1726405157010,0.2535616,136.13,136.11,30.0]
[1726405162188,0.2535616,136.13,136.05,30.0]
[1726405162404,0.2535616,136.13,136.08,0.12549]
[1726405162589,0.2535616,136.13,136.09,0.12549]
[1726405162798,0.2535616,136.13,136.08,0.12549]
[1726405162991,0.2535616,136.13,136.09,0.12549]
[1726405163192,0.2535616,136.13,136.1,0.12549]
[1726405163406,0.2535616,136.13,136.1,0.25098]
[1726405164214,0.2535616,136.13,136.11,0.12549]
[1726405164513,0.2535616,136.13,136.11,0.25098]
[1726405165517,0.2535616,136.13,136.12,30.0]
[1726405166505,0.2535616,136.13,136.12,30.12549]
[1726405168390,0.2535616,136.13,136.12,30.25098]
[1726405168591,0.2535616,136.13,136.12,31.84530432]
[1726405168896,0.2535616,136.13,136.12,54.153354]
[1726405169095,0.2535616,136.13,136.12,55.62166]
[1726405170313,0.2535616,136.13,136.12,69.172354]
[1726405170500,0.2535616,136.13,136.12,80.76346658]
[1726405170893,0.2535616,136.13,136.12,69.172354]
[1726405173898,0.2535616,136.13,136.12,80.1206888]
[1726405176226,0.2535616,136.13,136.12,69.172354]
[1726405176519,0.2535616,136.13,136.12,45.019]
[1726405177693,0.2535616,136.13,136.12,69.046864]
[1726405177895,0.2535616,136.13,136.12,69.172354]
[1726405178823,0.2535616,136.13,136.12,78.60557823]
[1726405180422,0.2535616,136.13,136.12,69.172354]
[1726405180637,0.2535616,136.13,136.12,78.60490009]
[1726405181319,0.2535616,136.13,136.12,54.82801609]
[1726405181524,0.2535616,136.13,136.12,39.80901609]
[1726405182021,0.2535616,136.13,136.12,63.58590009]
[1726405182196,0.2535616,136.13,136.12,39.80901609]
[1726405183508,0.2535616,136.13,136.12,30.0]
[1726405184203,0.2535616,136.13,136.12,31.46880995]
[1726405184526,0.2535616,136.13,136.12,30.0]
[1726405184819,0.2535616,136.13,136.12,30.25098]
[1726405185007,0.2535616,136.13,136.12,30.37647]
[1726405187595,0.2535616,136.13,136.12,54.153354]
[1726405188704,0.2535616,136.13,136.12,55.62199153]
[1726405189334,0.2535616,136.13,136.12,54.153354]
[1726405191518,0.2535616,136.13,136.12,69.407754]